fUSD/lending_fUSD_20240428
["ID","MTS","AMOUNT","RATE_DAILY","PERIOD"]
[35623,1714331478829,-500.0,0.0001178,2]
[35625,1714331478848,-500.0,0.0001178,2]
[35627,1714331478867,-500.0,0.0001178,2]
[35629,1714331478887,-728.71,0.0001178,2]
[35631,1714331478907,-500.0,0.0001178,2]
[35633,1714331478926,-615.66,0.0001178,2]
[35635,1714331478944,-500.0,0.0001178,2]
[35637,1714331478964,-575.03,0.0001178,2]
[35639,1714331478982,-500.0,0.0001178,2]
[35641,1714331479001,-538.42,0.0001178,2]
[35643,1714331479019,-772.95,0.0001178,2]
[35645,1714331479038,-815.56,0.0001178,2]
[35647,1714331479057,-500.0,0.0001178,2]
[35649,1714331479075,-500.0,0.0001178,2]
[35651,1714331479094,-500.0,0.0001178,2]
[35653,1714331479112,-765.46,0.0001178,2]
[35655,1714331479131,-652.17,0.0001178,2]
[35656,1714331479140,-500.0,0.0001178,2]
[35657,1714331479148,-585.78,0.0001178,2]
[35658,1714331479158,-500.0,0.0001178,2]
[35659,1714331479167,-519.38,0.0001178,2]
[35660,1714331479176,-500.0,0.0001178,2]
[35661,1714331479185,-500.0,0.0001178,2]
[35663,1714331479203,-535.83,0.0001178,2]
[35664,1714331479212,-500.0,0.0001178,2]
[35665,1714331479221,-500.0,0.0001178,2]
[35667,1714331479240,-500.0,0.0001178,2]
[35669,1714331479258,-500.0,0.0001178,2]
[35671,1714331479278,-500.0,0.0001178,2]
[35673,1714331479298,-500.0,0.0001178,2]
[35675,1714331479316,-500.0,0.0001178,2]
[35677,1714331479336,-500.0,0.0001178,2]
[35679,1714331479358,-500.0,0.0001178,2]
[35681,1714331479376,-810.35,0.0001178,2]
[35683,1714331479395,-625.09,0.0001178,2]
[35685,1714331479413,-500.0,0.0001178,2]
[35687,1714331479432,-500.0,0.0001178,2]
[35689,1714331479451,-500.0,0.0001178,2]
[35691,1714331479469,-704.75,0.0001178,2]
[35693,1714331479487,-500.0,0.0001178,2]
[35695,1714331479505,-500.0,0.0001178,2]
[35697,1714331479524,-534.78,0.0001178,2]
[35699,1714331479542,-500.0,0.0001178,2]
[35701,1714331479560,-500.0,0.0001178,2]
[35703,1714331479578,-775.6,0.0001178,2]
[35705,1714331479597,-682.92,0.0001178,2]
[35707,1714331479616,-890.23,0.0001178,2]
[35709,1714331479636,-628.44,0.0001178,2]
[35711,1714331479657,-512.99,0.0001178,2]
[35713,1714331479677,-500.0,0.0001178,2]
[35715,1714331479698,-500.0,0.0001178,2]
[35717,1714331479718,-561.86,0.0001178,2]
[35719,1714331479739,-564.08516178,0.0001178,2]
[35720,1714331479749,-500.0,0.0001178,2]
[35721,1714331479758,-500.0,0.0001178,2]
[35723,1714331479780,-500.0,0.0001178,2]
[35725,1714331479799,-500.0,0.0001178,2]
[35727,1714331479818,-500.0,0.0001178,2]
[35729,1714331479836,-500.0,0.0001178,2]
[35731,1714331479856,-500.0,0.0001178,2]
[35733,1714331479875,-500.0,0.0001178,2]
[35735,1714331479894,-646.9,0.0001178,2]
[35737,1714331479911,-559.54,0.0001178,2]
[35739,1714331479929,-500.0,0.0001178,2]
[35740,1714331479938,-500.0,0.0001178,2]
[35741,1714331479948,-588.44,0.0001178,2]
[35743,1714331479968,-500.0,0.0001178,2]
[35745,1714331479987,-632.76126561,0.0001178,2]
[35747,1714331480006,-500.0,0.0001178,2]
[35749,1714331480024,-500.0,0.0001178,2]
[35751,1714331480043,-573.36,0.0001178,2]
[35753,1714331480062,-888.38,0.0001178,2]
[35755,1714331480080,-500.0,0.0001178,2]
[35757,1714331480098,-596.12,0.0001178,2]
[35759,1714331480117,-700.29,0.0001178,2]
[35761,1714331480136,-500.0,0.0001178,2]
[35763,1714331480154,-500.0,0.0001178,2]
[35765,1714331480172,-500.0,0.0001178,2]
[35767,1714331480191,-500.0,0.0001178,2]
[35769,1714331480210,-150.0,0.0001178,2]
[35771,1714331480228,-500.0,0.0001178,2]
[35773,1714331480247,-500.0,0.0001178,2]
[35775,1714331480266,-504.65185419,0.0001178,2]
[35777,1714331480285,-500.0,0.0001178,2]
[35779,1714331480304,-708.42,0.0001178,2]
[35781,1714331480323,-504.20918724,0.0001178,2]
[35783,1714331480341,-500.0,0.0001178,2]
[35784,1714331480356,-520.06,0.0001178,2]
[35785,1714331480366,-500.0,0.0001178,2]
[35787,1714331480385,-765.39,0.0001178,2]
[35788,1714331480395,-469.18442368,0.0001178,2]
[35789,1714331480404,-510.54,0.0001178,2]
[35790,1714331480413,-500.0,0.0001178,2]
[35791,1714331480423,-500.0,0.0001178,2]
[35792,1714331480433,-500.0,0.0001178,2]
[35793,1714331480442,-500.0,0.0001178,2]
[35794,1714331480451,-500.0,0.0001178,2]
[35795,1714331480461,-979.76,0.0001178,2]
[35797,1714331480479,-662.94,0.0001178,2]
[35799,1714331480499,-906.44,0.0001178,2]
[35801,1714331480517,-500.0,0.0001178,2]
[35803,1714331480535,-551.42,0.0001178,2]
[35805,1714331480553,-837.85,0.0001178,2]
[35807,1714331480572,-500.0,0.0001178,2]
[35809,1714331480590,-271.74,0.0001178,2]
[35811,1714331480608,-500.0,0.0001178,2]
[35813,1714331480627,-500.0,0.0001178,2]
[35815,1714331480646,-536.2,0.0001178,2]
[35817,1714331480664,-500.0,0.0001178,2]
[35819,1714331480683,-500.0,0.0001178,2]
[35820,1714331480692,-717.54,0.0001178,2]
[35821,1714331480701,-577.63,0.0001178,2]
[35822,1714331480711,-500.0,0.0001178,2]
[35823,1714331480720,-500.0,0.0001178,2]
[35825,1714331480738,-500.0,0.0001178,2]
[35826,1714331480747,-500.0,0.0001178,2]
[35827,1714331480757,-500.0,0.0001178,2]
[35829,1714331480777,-500.0,0.0001178,2]
[35831,1714331480795,-500.0,0.0001178,2]
[35833,1714331480814,-500.0,0.0001178,2]
[35835,1714331480832,-500.0,0.0001178,2]
[35837,1714331480851,-500.0,0.0001178,2]
[35839,1714331480870,-500.0,0.0001178,2]
[35841,1714331480888,-500.0,0.0001178,2]
[35843,1714331480906,-500.0,0.0001178,2]
[35845,1714331480925,-595.66,0.0001178,2]
[35846,1714331480934,-510.36535941,0.0001178,2]
[35847,1714331480944,-500.0,0.0001178,2]
[35849,1714331480963,-500.0,0.0001178,2]
[35850,1714331480973,-512.12783245,0.0001178,2]
[35851,1714331480982,-500.0,0.0001178,2]
[35853,1714331481001,-500.0,0.0001178,2]
[35854,1714331481011,-538.0,0.0001178,2]
[35855,1714331481021,-781.66,0.0001178,2]
[35857,1714331481051,-500.0,0.0001178,2]
[35859,1714331481070,-500.0,0.0001178,2]
[35861,1714331481088,-500.0,0.0001178,2]
[35863,1714331481107,-500.0,0.0001178,2]
[35865,1714331481126,-383.63,0.0001178,2]
[35867,1714331481146,-500.0,0.0001178,2]
[35869,1714331481165,-500.0,0.0001178,2]
[35871,1714331481184,-500.0,0.0001178,2]
[35873,1714331481203,-531.88,0.0001178,2]
[35874,1714331481213,-1007.48,0.0001178,2]
[35875,1714331481223,-1772.83,0.0001178,2]
[35876,1714331481232,-503.06505384,0.0001178,2]
[35877,1714331481243,-532.51,0.0001178,2]
[35878,1714331481252,-2921.48,0.0001178,2]
[35879,1714331481262,-986.84,0.0001178,2]
[35880,1714331481273,-598.01,0.0001178,2]
[35881,1714331481282,-500.0,0.0001178,2]
[35882,1714331481291,-500.0,0.0001178,2]
[35883,1714331481300,-500.0,0.0001178,2]
[35884,1714331481309,-625.85,0.0001178,2]
[35885,1714331481319,-500.0,0.0001178,2]
[35886,1714331481328,-500.0,0.0001178,2]
[35887,1714331481338,-500.0,0.0001178,2]
[35888,1714331481353,-805.9,0.0001178,2]
[35889,1714331481363,-500.0,0.0001178,2]
[35890,1714331481372,-500.0,0.0001178,2]
[35891,1714331481381,-500.0,0.0001178,2]
[35892,1714331481392,-1026.14,0.0001178,2]
[35893,1714331481402,-500.0,0.0001178,2]
[35894,1714331481412,-500.0,0.0001178,2]
[35895,1714331481422,-500.0,0.0001178,2]
[35897,1714331481442,-1489.77,0.0001178,2]
[35898,1714331481451,-500.0,0.0001178,2]
[35899,1714331481461,-500.0,0.0001178,2]
[35901,1714331481480,-500.0,0.0001178,2]
[35903,1714331481499,-772.53,0.0001178,2]
[35905,1714331481517,-622.52,0.0001178,2]
[35907,1714331481537,-500.0,0.0001178,2]
[35909,1714331481558,-500.0,0.0001178,2]
[35911,1714331481578,-979.15,0.0001178,2]
[35912,1714331481588,-551.80676212,0.0001178,2]
[35913,1714331481597,-2683.52,0.0001178,2]
[35914,1714331481607,-500.0,0.0001178,2]
[35915,1714331481616,-500.0,0.0001178,2]
[35917,1714331481637,-513.23,0.0001178,2]
[35919,1714331481658,-500.0,0.0001178,2]
[35921,1714331481679,-1071.68,0.0001178,2]
[35923,1714331481701,-1126.91,0.0001178,2]
[35925,1714331481722,-500.0,0.0001178,2]
[35927,1714331481741,-768.45,0.0001178,2]
[35929,1714331481762,-500.0,0.0001178,2]
[35931,1714331481784,-729.6,0.0001178,2]
[35933,1714331481804,-1727.07,0.0001178,2]
[35935,1714331481824,-1439.12,0.0001178,2]
[35936,1714331481834,-500.0,0.0001178,2]
[35937,1714331481844,-500.0,0.0001178,2]
[35938,1714331481853,-560.22,0.0001178,2]
[35939,1714331481863,-500.0,0.0001178,2]
[35941,1714331481882,-570.48,0.0001178,2]
[35943,1714331481901,-2375.71,0.0001178,2]
[35945,1714331481921,-3328.96,0.0001178,2]
[35947,1714331481940,-726.91,0.0001178,2]
[35949,1714331481958,-500.0,0.0001178,2]
[35951,1714331481977,-500.0,0.0001178,2]
[35953,1714331481995,-1119.03,0.0001178,2]
[35955,1714331482014,-500.0,0.0001178,2]
[35957,1714331482211,-1829.87,0.0001178,2]
[35958,1714331482221,-555.89,0.0001178,2]
[35959,1714331482230,-502.88,0.0001178,2]
[35961,1714331482249,-1369.84,0.0001178,2]
[35963,1714331482267,-500.0,0.0001178,2]
[35965,1714331482286,-1950.72,0.0001178,2]
[35967,1714331482306,-500.0,0.0001178,2]
[35969,1714331482324,-500.0,0.0001178,2]
[35971,1714331482343,-502.86,0.0001178,2]
[35973,1714331482366,-500.0,0.0001178,2]
[35975,1714331482384,-500.0,0.0001178,2]
[35977,1714331482404,-500.0,0.0001178,2]
[35979,1714331482422,-1573.76,0.0001178,2]
[35981,1714331482442,-782.34,0.0001178,2]
[35983,1714331482460,-500.0,0.0001178,2]
[35985,1714331482478,-8529.27,0.0001178,2]
[35987,1714331482496,-500.0,0.0001178,2]
[35989,1714331482516,-500.0,0.0001178,2]
[35991,1714331482535,-500.0,0.0001178,2]
[35993,1714331482553,-925.51,0.0001178,2]
[35995,1714331482572,-850.01,0.0001178,2]
[35997,1714331482591,-2107.3,0.0001178,2]
[35999,1714331482611,-500.0,0.0001178,2]
[36001,1714331482632,-500.0,0.0001178,2]
[36002,1714331482642,-500.0,0.0001178,2]
[36003,1714331482652,-500.0,0.0001178,2]
[36005,1714331482670,-1434.31,0.0001178,2]
[36007,1714331482690,-823.49,0.0001178,2]
[36009,1714331482708,-500.0,0.0001178,2]
[36011,1714331482727,-506.41831689,0.0001178,2]
[36013,1714331482746,-1145.96,0.0001178,2]
[36015,1714331482764,-4341.09,0.0001178,2]
[36017,1714331482783,-2859.93,0.0001178,2]
[36019,1714331482802,-500.0,0.0001178,2]
[36021,1714331482821,-500.0,0.0001178,2]
[36023,1714331482841,-500.0,0.0001178,2]
[36025,1714331482860,-500.0,0.0001178,2]
[36026,1714331482869,-1251.88,0.0001178,2]
[36027,1714331482879,-982.93,0.0001178,2]
[36029,1714331482897,-500.0,0.0001178,2]
[36031,1714331482916,-558.43,0.0001178,2]
[36033,1714331482935,-900.56,0.0001178,2]
[36035,1714331482958,-500.0,0.0001178,2]
[36037,1714331482978,-500.0,0.0001178,2]
[36038,1714331482988,-500.0,0.0001178,2]
[36039,1714331482998,-760.17,0.0001178,2]
[36041,1714331483018,-500.0,0.0001178,2]
[36043,1714331483038,-812.36,0.0001178,2]
[36045,1714331483058,-586.66,0.0001178,2]
[36047,1714331483077,-1319.84,0.0001178,2]
[36049,1714331483098,-500.0,0.0001178,2]
[36051,1714331483122,-500.0,0.0001178,2]
[36053,1714331483143,-625.97,0.0001178,2]
[36055,1714331483163,-5810.04,0.0001178,2]
[36057,1714331483182,-500.0,0.0001178,2]
[36059,1714331483201,-11529.36,0.0001178,2]
[36060,1714331483211,-2615.87,0.0001178,2]
[36061,1714331483221,-534.65,0.0001178,2]
[36063,1714331483240,-1308.4,0.0001178,2]
[36065,1714331483260,-813.94,0.0001178,2]
[36066,1714331483269,-694.2,0.0001178,2]
[36067,1714331483280,-903.91,0.0001178,2]
[36069,1714331483300,-500.0,0.0001178,2]
[36071,1714331483320,-500.0,0.0001178,2]
[36073,1714331483341,-1112.97,0.0001178,2]
[36074,1714331483356,-565.24,0.0001178,2]
[36075,1714331483366,-1316.95,0.0001178,2]
[36076,1714331483376,-1711.83,0.0001178,2]
[36077,1714331483386,-747.92,0.0001178,2]
[36079,1714331483407,-1211.25,0.0001178,2]
[36081,1714331483427,-600.34,0.0001178,2]
[36083,1714331483447,-995.48,0.0001178,2]
[36085,1714331483466,-500.0,0.0001178,2]
[36087,1714331483485,-829.71,0.0001178,2]
[36089,1714331483505,-500.0,0.0001178,2]
[36091,1714331483526,-500.0,0.0001178,2]
[36093,1714331483546,-500.0,0.0001178,2]
[36095,1714331483566,-3800.95,0.0001178,2]
[36097,1714331483586,-1489.82,0.0001178,2]
[36099,1714331483605,-2169.37,0.0001178,2]
[36101,1714331483624,-2292.13,0.0001178,2]
[36103,1714331483644,-500.0,0.0001178,2]
[36105,1714331483665,-500.0,0.0001178,2]
[36107,1714331483684,-11916.14,0.0001178,2]
[36109,1714331483704,-706.5,0.0001178,2]
[36111,1714331483723,-500.0,0.0001178,2]
[36113,1714331483743,-1126.83,0.0001178,2]
[36115,1714331483762,-917.33,0.0001178,2]
[36117,1714331483781,-500.0,0.0001178,2]
[36119,1714331483800,-500.0,0.0001178,2]
[36121,1714331483820,-500.0,0.0001178,2]
[36123,1714331483839,-1138.49,0.0001178,2]
[36125,1714331483858,-500.0,0.0001178,2]
[36127,1714331483878,-500.0,0.0001178,2]
[36129,1714331483897,-860.55,0.0001178,2]
[36131,1714331483916,-500.0,0.0001178,2]
[36133,1714331483935,-500.0,0.0001178,2]
[36135,1714331483954,-500.0,0.0001178,2]
[36137,1714331483973,-500.0,0.0001178,2]
[36139,1714331483991,-500.0,0.0001178,2]
[36141,1714331484010,-977.7,0.0001178,2]
[36143,1714331484029,-1049.2,0.0001178,2]
[36145,1714331484048,-16083.09,0.0001178,2]
[36147,1714331484068,-723.16,0.0001178,2]
[36149,1714331484087,-761.59,0.0001178,2]
[36151,1714331484106,-500.0,0.0001178,2]
[36153,1714331484124,-500.0,0.0001178,2]
[36155,1714331484143,-500.0,0.0001178,2]
[36157,1714331484162,-951.73,0.0001178,2]
[36159,1714331484180,-500.0,0.0001178,2]
[36161,1714331484199,-1185.86,0.0001178,2]
[36163,1714331484218,-500.0,0.0001178,2]
[36165,1714331484237,-8626.56,0.0001178,2]
[36167,1714331484256,-500.0,0.0001178,2]
[36169,1714331484275,-2988.7,0.0001178,2]
[36170,1714331484284,-619.85,0.0001178,2]
[36171,1714331484294,-766.16,0.0001178,2]
[36172,1714331484303,-500.0,0.0001178,2]
[36173,1714331484313,-500.0,0.0001178,2]
[36174,1714331484664,-1206.57,0.0001178,2]
[36175,1714331484688,-500.0,0.0001178,2]
[36177,1714331484707,-500.0,0.0001178,2]
[36178,1714331484717,-500.0,0.0001178,2]
[36179,1714331484726,-526.35,0.0001178,2]
[36181,1714331484745,-1174.3,0.0001178,2]
[36183,1714331484764,-500.0,0.0001178,2]
[36185,1714331484783,-3774.23,0.0001178,2]
[36187,1714331484805,-1939.82,0.0001178,2]
[36189,1714331484825,-897.97,0.0001178,2]
[36191,1714331484845,-1975.3,0.0001178,2]
[36193,1714331484864,-500.0,0.0001178,2]
[36195,1714331484884,-500.0,0.0001178,2]
[36196,1714331484895,-1962.38,0.0001178,2]
[36197,1714331484905,-500.0,0.0001178,2]
[36198,1714331484915,-3862.59,0.0001178,2]
[36199,1714331484924,-432.25,0.0001178,2]
[36200,1714331484934,-736.62,0.0001178,2]
[36201,1714331484944,-2736.52,0.0001178,2]
[36203,1714331484963,-2923.81,0.0001178,2]
[36205,1714331484983,-1242.16,0.0001178,2]
[36207,1714331485003,-678.26,0.0001178,2]
[36209,1714331485022,-500.0,0.0001178,2]
[36211,1714331485591,-940.33955,0.0001178,2]
[36213,1714331485613,-500.0,0.0001178,2]
[36215,1714331485632,-605.18109201,0.0001178,2]
[36217,1714331486374,-500.0,0.00010958,2]
[36219,1714331486394,-500.0,0.00010958,2]
[36221,1714331486413,-500.0,0.00010958,2]
[36223,1714331486435,-500.0,0.00010958,2]
[36225,1714331486454,-500.0,0.00011232,2]
[36227,1714331486473,-500.0,0.00011232,2]
[36229,1714331486492,-500.0,0.00011232,2]
[36231,1714331486511,-500.0,0.00011506,2]
[36233,1714331486531,-500.0,0.00011506,2]
[36235,1714331486549,-406.88,0.00011506,2]
[36237,1714331486569,-500.0,0.0001178,2]
[36239,1714331486588,-640.18,0.0001178,2]
[36241,1714331486607,-676.0470721,0.0001178,2]
[36243,1714331486631,-202.8824959,0.0001178,2]
[36245,1714331486654,-15427.11119365,0.0001178,2]
[36247,1714331486676,-500.0,0.0001178,2]
[36249,1714331486695,-500.0,0.0001178,2]
[36251,1714331486716,-500.0,0.0001178,2]
[36253,1714331486737,-5719.97,0.0001178,2]
[36255,1714331486759,-374.87112222,0.0001178,2]
[36257,1714331486778,-500.0,0.0001178,2]
[36259,1714331486797,-500.0,0.0001178,2]
[36261,1714331486816,-765.55,0.0001178,2]
[36263,1714331486835,-500.0,0.0001178,2]
[36265,1714331486855,-808.74,0.0001178,2]
[36267,1714331486875,-500.0,0.0001178,2]
[36269,1714331486894,-500.0,0.0001178,2]
[36270,1714331486903,-500.0,0.0001178,2]
[36271,1714331486913,-500.0,0.0001178,2]
[36273,1714331487015,-500.0,0.0001178,2]
[36275,1714331487035,-500.0,0.0001178,2]
[36277,1714331487056,-500.0,0.0001178,2]
[36279,1714331487075,-500.0,0.0001178,2]
[36281,1714331487094,-57890.76095041,0.00011954,2]
[36283,1714331487178,-500.0,0.00010958,2]
[36284,1714331487188,-185268.13404961,0.00011954,2]
[36285,1714331487198,-1110.0,0.00011966,2]
[36287,1714331487216,-170.0,0.00011989,2]
[36289,1714331487236,-5000.0,0.00012,2]
[36291,1714331487255,-23493.195405,0.00012,2]
[36293,1714331487273,-500.0,0.00012,2]
[36295,1714331487293,-3500.0,0.0001204,2]
[36297,1714331487312,-500.0,0.00012054,2]
[36299,1714331487331,-510.25,0.00012054,2]
[36301,1714331487354,-500.0,0.00012054,2]
[36303,1714331487373,-500.0,0.00012054,2]
[36305,1714331487393,-500.0,0.00012054,2]
[36307,1714331487410,-500.0,0.00012054,2]
[36309,1714331487429,-500.0,0.00012054,2]
[36311,1714331487448,-500.0,0.00012054,2]
[36313,1714331487466,-500.0,0.00012054,2]
[36315,1714331487484,-500.0,0.00012054,2]
[36317,1714331487502,-500.0,0.00012054,2]
[36319,1714331487520,-500.0,0.00012054,2]
[36321,1714331487539,-500.0,0.00012054,2]
[36323,1714331487557,-500.0,0.00012054,2]
[36325,1714331487576,-500.0,0.00012054,2]
[36327,1714331487595,-500.0,0.00012054,2]
[36329,1714331487613,-500.0,0.00012054,2]
[36331,1714331487632,-500.0,0.00012054,2]
[36333,1714331487651,-500.0,0.00012054,2]
[36335,1714331487669,-597.62,0.00012054,2]
[36337,1714331487687,-500.0,0.00012054,2]
[36339,1714331487708,-500.0,0.00012054,2]
[36341,1714331487729,-500.0,0.00012054,2]
[36343,1714331487748,-500.0,0.00012054,2]
[36345,1714331487767,-500.0,0.00012054,2]
[36347,1714331487785,-500.0,0.00012054,2]
[36349,1714331487803,-500.0,0.00012054,2]
[36351,1714331487823,-500.0,0.00012054,2]
[36353,1714331487841,-500.0,0.00012054,2]
[36355,1714331487859,-503.88,0.00012054,2]
[36356,1714331487869,-515.09090692,0.00012054,2]
[36357,1714331487878,-500.0,0.00012054,2]
[36359,1714331487896,-610.03,0.00012054,2]
[36361,1714331487915,-583.95887217,0.00012054,2]
[36363,1714331487933,-500.0,0.00012054,2]
[36365,1714331487952,-500.0,0.00012054,2]
[36367,1714331487971,-500.0,0.00012054,2]
[36369,1714331487990,-588.27,0.00012054,2]
[36371,1714331488008,-500.0,0.00012054,2]
[36373,1714331488028,-500.0,0.00012054,2]
[36375,1714331488045,-500.0,0.00012054,2]
[36377,1714331488063,-500.0,0.00012054,2]
[36379,1714331488081,-500.0,0.00012054,2]
[36381,1714331488099,-500.0,0.00012054,2]
[36383,1714331488117,-584.81,0.00012054,2]
[36385,1714331488135,-546.92,0.00012054,2]
[36387,1714331488152,-500.0,0.00012054,2]
[36389,1714331488170,-638.09,0.00012054,2]
[36391,1714331488188,-500.0,0.00012054,2]
[36393,1714331488207,-500.0,0.00012054,2]
[36395,1714331488225,-500.0,0.00012054,2]
[36397,1714331488244,-500.0,0.00012054,2]
[36399,1714331488262,-500.0,0.00012054,2]
[36401,1714331488279,-649.78,0.00012054,2]
[36403,1714331488298,-500.0,0.00012054,2]
[36405,1714331488316,-500.0,0.00012054,2]
[36407,1714331488334,-550.86,0.00012054,2]
[36409,1714331488355,-500.0,0.00012054,2]
[36411,1714331488373,-500.0,0.00012054,2]
[36413,1714331488392,-652.17,0.00012054,2]
[36415,1714331488410,-666.44,0.00012054,2]
[36417,1714331488429,-500.0,0.00012054,2]
[36419,1714331488451,-500.0,0.00012054,2]
[36421,1714331488469,-500.0,0.00012054,2]
[36423,1714331488487,-500.0,0.00012054,2]
[36425,1714331488505,-500.0,0.00012054,2]
[36427,1714331488522,-583.37,0.00012054,2]
[36429,1714331488542,-500.0,0.00012054,2]
[36431,1714331488559,-500.0,0.00012054,2]
[36433,1714331488577,-500.0,0.00012054,2]
[36435,1714331488595,-500.0,0.00012054,2]
[36437,1714331488613,-500.0,0.00012054,2]
[36439,1714331488631,-500.0,0.00012054,2]
[36441,1714331488649,-500.0,0.00012054,2]
[36443,1714331488666,-500.0,0.00012054,2]
[36445,1714331488684,-500.0,0.00012054,2]
[36447,1714331488701,-500.0,0.00012054,2]
[36448,1714331488710,-500.0,0.00012054,2]
[36449,1714331488719,-500.0,0.00012054,2]
[36450,1714331488728,-500.0,0.00012054,2]
[36451,1714331488736,-1224.58,0.00012054,2]
[36452,1714331488745,-574.66,0.00012054,2]
[36453,1714331488754,-500.0,0.00012054,2]
[36454,1714331488763,-1272.33,0.00012054,2]
[36455,1714331488773,-500.0,0.00012054,2]
[36456,1714331488782,-624.41,0.00012054,2]
[36457,1714331488791,-500.0,0.00012054,2]
[36458,1714331488800,-500.0,0.00012054,2]
[36459,1714331488809,-500.0,0.00012054,2]
[36461,1714331488827,-523.16,0.00012054,2]
[36463,1714331488845,-500.0,0.00012054,2]
[36465,1714331488863,-500.0,0.00012054,2]
[36467,1714331488881,-500.0,0.00012054,2]
[36469,1714331488899,-533.0,0.00012054,2]
[36471,1714331488917,-500.0,0.00012054,2]
[36473,1714331488935,-500.0,0.00012054,2]
[36474,1714331488945,-500.0,0.00012054,2]
[36475,1714331488954,-899.28,0.00012054,2]
[36476,1714331488963,-500.0,0.00012054,2]
[36477,1714331488972,-500.0,0.00012054,2]
[36478,1714331488981,-500.0,0.00012054,2]
[36479,1714331488990,-1142.31,0.00012054,2]
[36480,1714331488999,-500.0,0.00012054,2]
[36481,1714331489008,-500.0,0.00012054,2]
[36482,1714331489017,-581.74,0.00012054,2]
[36483,1714331489026,-606.2,0.00012054,2]
[36484,1714331489036,-221.91317917,0.00012054,2]
[36485,1714331489045,-500.0,0.00012054,2]
[36486,1714331489054,-500.0,0.00012054,2]
[36487,1714331489063,-618.36,0.00012054,2]
[36488,1714331489072,-500.0,0.00012054,2]
[36489,1714331489081,-500.0,0.00012054,2]
[36490,1714331489090,-500.0,0.00012054,2]